fUSD/lending_fUSD_20240624
["ID","MTS","AMOUNT","RATE_DAILY","PERIOD"]
[330265474,1719215522082,-213.66393998,0.00013937,2]
[330265475,1719215522112,-417.51197649,0.00013937,2]
[330265476,1719215522158,-202.54159079,0.00013937,2]
[330265477,1719215522189,-217.76664171,0.00014,2]
[330265478,1719215522227,-679.56492815,0.00014,2]
[330265479,1719215522269,-815.71185119,0.00014,2]
[330265480,1719215594301,200.0,0.00025956,120]
[330265481,1719215597560,1000.0,0.00025956,120]
[330265482,1719215598242,172.43,0.00024803,120]
[330265483,1719215601180,200.0,0.0002588,120]
[330265485,1719215843842,6412.66059683,0.00025,60]
[330265538,1719216631894,-736.81225318,0.00013834,2]
[330265539,1719216631905,-150.0,0.00013899,2]
[330265540,1719216631915,-300.0,0.00013899,2]
[330265541,1719216631924,-732.37545393,0.000139,2]
[330265542,1719216631934,-164.7235,0.000139,2]
[330265543,1719216631944,-1456.129264,0.000139,2]
[330265544,1719216631956,-1244.510936,0.000139,2]
[330265545,1719216631965,-315.23607883,0.000139,2]
[330265546,1719216631975,-572.5610977,0.000139,2]
[330265547,1719216631985,-5191.2482,0.000139,2]
[330265548,1719216631995,-1499.59908107,0.000139,2]
[330265549,1719216632006,-2170.3912955,0.000139,2]
[330265550,1719216632015,-184.29123244,0.00013901,2]
[330265551,1719216632024,-174.56450957,0.00013937,2]
[330265552,1719216632035,-383.3117566,0.00013967,2]
[330265553,1719216632044,-237.84894069,0.0001399,2]
[330265554,1719216632053,-7077.49384444,0.00014,2]
[330265555,1719216632065,-432.92,0.00014,2]
[330265556,1719216632081,-2212.0993828,0.00014,2]
[330265557,1719216632098,-749211.80188912,0.00014,2]
[330265558,1719216632117,-2503.36,0.00014,2]
[330265559,1719216632549,-31313.85132534,0.00014,2]
[330265605,1719216637960,-528.26819612,0.00014,2]
[330265606,1719216638083,-4894.76902435,0.00014,2]
[330265607,1719216638098,-785.60005,0.00014,2]
[330265608,1719216638146,-11625.6407319,0.00014,2]
[330265619,1719216640065,-331.81172029,0.00013809,2]
[330265620,1719216640078,-83.26727137,0.00013809,2]
[330265621,1719216640088,-936025.34267279,0.00014,2]
[330265622,1719216640100,-187613.60398175,0.00014,2]
[330265623,1719216641504,-178154.945,0.00014,2]
[330265624,1719216641567,-3578.64274748,0.00014,2]
[330265625,1719216641578,-443.43736833,0.00014,2]
[330265626,1719216641687,-548.34250246,0.00014,2]
[330265627,1719216641699,-1681.86605116,0.00014,2]
[330265628,1719216641711,-253.52999991,0.00014,2]
[330265654,1719216643011,-3306.6501,0.00014,2]
[330265655,1719216643023,-338.05772,0.00014,2]
[330265656,1719216643129,-1310.78135519,0.00014,2]
[330265657,1719216643141,-1276948.10589383,0.00014,2]
[330265658,1719216643153,-954220.2000654,0.00014,2]
[330265671,1719216643603,-319.999995,0.00014,2]
[330265684,1719216645990,-3132.0,0.00014,2]
[330265685,1719216646114,-4376.16417257,0.00014,2]
[330265686,1719216646130,-6261.41425116,0.00014,2]
[330265688,1719216721981,-150.0,0.00013859,2]
[330265689,1719216722015,-150.0,0.00013859,2]
[330265690,1719216722048,-208.08755087,0.0001386,2]
[330265691,1719216722149,-387.13406991,0.0001386,2]
[330265694,1719216795007,200.0,0.00025956,120]
[330265695,1719216799107,1000.0,0.00025956,120]
[330265696,1719216802835,200.0,0.0002588,120]
[330265699,1719217116405,616.9,0.0001328,2]
[330265701,1719217211598,1365.50633314,0.0001328,2]
[330265702,1719217226223,1533.84182686,0.0001328,2]
[330265725,1719217703297,11483.75184,0.00013247,2]
[330265726,1719217703321,12416.24816,0.00013247,2]
[330265727,1719217753316,486.85,0.00012898,2]
[330265728,1719217756308,586.05,0.0001098,2]
[330265729,1719217756560,586.05,0.00013244,2]
[330265735,1719217781228,-169.91700018,0.0002481,30]
[330265736,1719217781254,-159.78,0.000249,31]
[330265737,1719217781279,-159.78,0.000249,31]
[330265738,1719217781304,-159.78,0.000249,31]
[330265739,1719217781328,-159.78,0.000249,31]
[330265740,1719217781352,-159.78,0.000249,31]
[330265741,1719217781382,-2000.0,0.00024987,31]
[330265742,1719217781406,-667.66207935,0.00025,30]
[330265743,1719217781433,-250.0,0.00025,30]
[330265744,1719217781458,-3209.35557353,0.00025,30]
[330265745,1719217781504,-150.0,0.0002563,60]
[330265746,1719217781542,-1208.0,0.0002643,30]
[330265747,1719217781566,-200.0,0.00026499,120]
[330265748,1719217781589,-200.0,0.00026499,120]
[330265749,1719217781613,-251.0,0.0002663,120]
[330265750,1719217781641,-662.07381661,0.000269,30]
[330265751,1719217781666,-200.0,0.00026999,120]
[330265752,1719217781689,-200.0,0.00026999,120]
[330265753,1719217781714,-314.6615224,0.00027,90]
[330265754,1719217781738,-159.78,0.00027,31]
[330265755,1719217781762,-159.78,0.00027,31]
[330265756,1719217781786,-26117.83635606,0.000271,30]
[330265757,1719217781811,-1000.0,0.00027341,120]
[330265758,1719217781838,-292.47630776,0.0002739,30]
[330265759,1719217781870,-244.01,0.00027397,30]
[330265760,1719217781892,-2000.0,0.00027397,30]
[330265761,1719217781918,-2000.0,0.00027397,30]
[330265762,1719217781941,-2000.0,0.00027397,30]
[330265763,1719217781966,-2000.0,0.00027397,30]
[330265764,1719217781988,-2000.0,0.00027397,30]
[330265765,1719217782013,-2000.0,0.00027397,30]
[330265766,1719217782037,-2000.0,0.00027397,30]
[330265767,1719217782060,-2000.0,0.00027397,30]
[330265768,1719217782082,-2000.0,0.00027397,30]
[330265769,1719217782106,-2000.0,0.00027397,30]
[330265770,1719217782131,-2000.0,0.00027397,30]
[330265771,1719217782155,-2000.0,0.00027397,30]
[330265772,1719217782178,-1579.12265668,0.00027397,30]
[330265773,1719217782202,-200.0,0.00027397,60]
[330265774,1719217782232,-200.0,0.00027499,120]
[330265775,1719217782256,-244.01,0.00027534,30]
[330265776,1719217782279,-150.0,0.00027589,120]
[330265777,1719217782303,-244.01,0.00027671,30]
[330265778,1719217782327,-150.0,0.00027706,120]
[330265779,1719217782350,-244.01,0.00027808,30]
[330265780,1719217782374,-244.01,0.00027945,30]
[330265781,1719217782399,-1550.77409293,0.00028,30]
[330265782,1719217782422,-521.0,0.00028,120]
[330265783,1719217782445,-579.66659524,0.00028,120]
[330265784,1719217782470,-244.01,0.00028082,30]
[330265785,1719217782494,-150.0,0.00028168,120]
[330265786,1719217782516,-244.01,0.00028219,30]
[330265787,1719217782539,-154.69968593,0.00028297,120]
[330265788,1719217782563,-244.01,0.00028356,30]
[330265789,1719217782587,-150.0,0.00028464,120]
[330265790,1719217782610,-244.01,0.00028493,30]
[330265791,1719217782633,-225.50672729,0.000285,120]
[330265792,1719217782657,-244.01,0.0002863,30]
[330265793,1719217782706,-1000.0,0.00028682,120]
[330265794,1719217782731,-244.01,0.00028767,30]
[330265795,1719217782756,-244.01,0.00028904,30]
[330265796,1719217782781,-150.0,0.00028949,120]
[330265797,1719217782805,-270.46231836,0.00029,30]
[330265798,1719217782834,-500.0,0.00029,120]
[330265799,1719217782859,-244.01,0.00029041,30]
[330265800,1719217782882,-244.01,0.00029178,30]
[330265801,1719217782906,-159.78,0.000292,31]
[330265802,1719217782930,-159.78,0.000292,31]
[330265803,1719217782954,-150.0,0.00029224,120]
[330265804,1719217782978,-244.01,0.00029315,30]
[330265805,1719217783003,-150.0,0.00029444,120]
[330265806,1719217783028,-244.01,0.00029452,30]
[330265807,1719217783050,-244.01,0.00029589,30]
[330265808,1719217783073,-244.01,0.00029726,30]
[330265809,1719217783097,-5000.0,0.00029824,31]
[330265810,1719217783122,-150.0,0.00029831,120]
[330265811,1719217783146,-150.0,0.00029837,120]
[330265812,1719217783358,-244.01,0.00029863,30]
[330265813,1719217783383,-244.01,0.00029999,30]
[330265814,1719217783408,-1404.21658785,0.0003,60]
[330265815,1719217783431,-200.0,0.0003,30]
[330265816,1719217783458,-743.5,0.0003,120]
[330265817,1719217783481,-250.0,0.0003,30]
[330265818,1719217783504,-250.0,0.0003,30]
[330265819,1719217783526,-250.0,0.0003,30]
[330265820,1719217783548,-418.66907053,0.0003,30]
[330265821,1719217783572,-285.83997765,0.0003,30]
[330265822,1719217783595,-2670.37542912,0.0003,30]
[330265823,1719217783616,-500.0,0.0003,120]
[330265824,1719217783640,-1000.0,0.00030024,120]
[330265825,1719217783664,-838.41,0.00030136,120]
[330265826,1719217783686,-838.41,0.00030136,120]
[330265827,1719217783712,-838.41,0.00030136,120]
[330265828,1719217783734,-838.41,0.00030136,120]
[330265829,1719217783758,-838.41,0.00030136,120]
[330265830,1719217783782,-838.41,0.00030136,120]
[330265831,1719217783804,-838.41,0.00030136,120]
[330265832,1719217783831,-838.41,0.00030136,120]
[330265833,1719217783854,-838.41,0.00030136,120]
[330265834,1719217783878,-838.41,0.00030136,120]
[330265835,1719217783902,-838.41,0.00030136,120]
[330265836,1719217783927,-838.41,0.00030136,120]
[330265837,1719217783951,-838.41,0.00030136,120]
[330265838,1719217783973,-838.41,0.00030136,120]
[330265839,1719217783995,-838.41,0.00030136,120]
[330265840,1719217784018,-838.41,0.00030136,120]
[330265841,1719217784041,-838.41,0.00030136,120]
[330265842,1719217784065,-838.41,0.00030136,120]
[330265843,1719217784088,-838.41,0.00030136,120]
[330265844,1719217784110,-838.41,0.00030136,120]
[330265845,1719217784132,-838.41,0.00030136,120]
[330265846,1719217784155,-838.41,0.00030136,120]
[330265847,1719217784178,-838.41,0.00030136,120]
[330265848,1719217784201,-838.53443449,0.00030136,120]
[330265849,1719217784224,-244.01,0.00030136,30]
[330265850,1719217784245,-200.0,0.00030137,60]
[330265851,1719217784269,-150.0,0.00030153,120]
[330265852,1719217784292,-244.01,0.00030273,30]
[330265853,1719217784317,-150.0,0.00030349,120]
[330265854,1719217784340,-244.01,0.0003041,30]
[330265855,1719217784365,-150.0,0.00030463,120]
[330265856,1719217784387,-244.19350931,0.00030547,30]
[330265857,1719217784410,-150.0,0.00030562,120]
[330265858,1719217784432,-150.0,0.00030573,120]
[330265859,1719217784456,-250.0,0.000308,30]
[330265860,1719217784479,-150.0,0.00030878,120]
[330265861,1719217784503,-500.0,0.00031,120]
[330265862,1719217784526,-150.0,0.00031067,120]
[330265863,1719217784550,-150.0,0.00031158,120]
[330265864,1719217784573,-150.0,0.00031272,120]
[330265865,1719217784596,-159.78,0.000313,31]
[330265866,1719217784619,-159.78,0.000313,31]
[330265867,1719217784643,-1000.0,0.00031366,120]
[330265868,1719217784667,-150.0,0.00031575,120]
[330265869,1719217784690,-150.0,0.00031834,120]
[330265870,1719217784715,-300.4,0.00032,120]
[330265871,1719217784741,-5000.0,0.00032,30]
[330265872,1719217784764,-500.0,0.00032,120]
[330265873,1719217784790,-2416.0,0.00032014,120]
[330265874,1719217784817,-150.0,0.00032275,120]
[330265875,1719217784841,-150.0,0.00032374,120]
[330265876,1719217784864,-261.79067948,0.00032393,40]
[330265877,1719217784886,-5611.69264981,0.00032484,31]
[330265878,1719217784912,-150.0,0.00032578,120]
[330265879,1719217784934,-150.0,0.00032688,120]
[330265880,1719217784958,-2681.31085002,0.00032798,32]
[330265881,1719217784980,-150.0,0.00032828,120]
[330265882,1719217785005,-510.87903387,0.00032876,30]
[330265883,1719217785031,-200.0,0.00032877,60]
[330265884,1719217785054,-310.87721194,0.00032877,30]
[330265885,1719217785079,-4000.0,0.00032877,30]
[330265886,1719217785104,-165296.38718726,0.000329,30]
[330265887,1719217785126,-13243.8174399,0.000329,30]
[330265888,1719217785151,-150.0,0.00032941,120]
[330265889,1719217785173,-159.09896981,0.00033,120]
[330265890,1719217785196,-154.22479112,0.00033,30]
[330265891,1719217785219,-8449.06846553,0.00033,30]
[330265892,1719217785241,-500.0,0.00033,120]
[330265893,1719217785264,-310.87721194,0.00033014,30]
[330265894,1719217785288,-150.0,0.00033099,120]
[330265895,1719217785311,-150.0,0.00033132,120]
[330265896,1719217785333,-310.87721194,0.00033151,30]
[330265897,1719217785356,-1321.69,0.00033151,120]
[330265898,1719217785379,-2828.45,0.00033151,120]
[330265899,1719217785401,-310.87721194,0.00033288,30]
[330265900,1719217785423,-310.87721194,0.00033425,30]
[330265901,1719217785446,-150.0,0.00033441,120]
[330265902,1719217785470,-159.78,0.000335,31]
[330265903,1719217785493,-159.78,0.000335,31]
[330265904,1719217785515,-310.87721194,0.00033562,30]
[330265905,1719217785541,-310.87721194,0.00033699,30]
[330265906,1719217785564,-310.87721194,0.00033836,30]
[330265907,1719217785588,-600.0,0.00034,120]
[330265908,1719217785610,-1109.32773836,0.00034,120]
[330265909,1719217785633,-500.0,0.00034,120]
[330265910,1719217785656,-310.87721194,0.00034,30]
[330265911,1719217785679,-150.0,0.00034136,120]
[330265912,1719217785701,-310.87721194,0.00034137,30]
[330265913,1719217785723,-310.87721194,0.00034274,30]
[330265914,1719217785746,-310.87721194,0.00034411,30]
[330265915,1719217785926,-310.87721194,0.00034548,30]
[330265916,1719217785948,-310.87721194,0.00034685,30]
[330265917,1719217785972,-331.50406913,0.000348,30]
[330265918,1719217785996,-310.87721194,0.00034822,30]
[330265919,1719217786020,-1500.0,0.00035,30]
[330265920,1719217786043,-1971.31527414,0.00035,30]
[330265921,1719217786066,-270.0,0.00035,30]
[330265922,1719217786089,-217.95,0.00035,120]
[330265923,1719217786112,-200.0,0.00035,120]
[330265924,1719217786135,-575.42022819,0.00035,30]
[330265925,1719217786158,-9999.0,0.00035,120]
[330265926,1719217786182,-500.0,0.00035,120]
[330265927,1719217786208,-1000.0,0.00035,30]
[330265928,1719217786232,-200.0,0.00035616,60]
[330265929,1719217786257,-500.0,0.00036,120]
[330265930,1719217786281,-500.0,0.00036,120]
[330265931,1719217786304,-28427.89382743,0.000368,60]
[330265932,1719217786327,-1000.0,0.00037,30]
[330265933,1719217786350,-250.0,0.00037,120]
[330265934,1719217786374,-2000.0,0.00037234,60]
[330265935,1719217786397,-700.0,0.00038,120]
[330265936,1719217786419,-8926.94778029,0.00038,30]
[330265937,1719217786443,-1150.83770424,0.00038,120]
[330265938,1719217786467,-196.10400879,0.00038355,90]
[330265939,1719217786491,-200.0,0.00038356,60]
[330265940,1719217786513,-601.36387225,0.000387,30]
[330265941,1719217786537,-435.94736638,0.000388,45]
[330265942,1719217786560,-12000.0,0.00039,30]
[330265943,1719217786583,-1000.0,0.00039,30]
[330265944,1719217786605,-4045.8433552,0.00039,30]
[330265945,1719217786626,-167.08205617,0.00039,30]
[330265946,1719217786647,-694.85757286,0.00039,120]
[330265947,1719217786669,-55858.60963352,0.000397,60]
[330265948,1719217786693,-300.0,0.00039713,120]
[330265949,1719217786715,-274.24418937,0.0003985,30]
[330265950,1719217786737,-3097068.17514076,0.0003988,30]
[330265951,1719217786760,-408.0,0.00039986,120]
[330265952,1719217786782,-2043.77198854,0.00039998,60]
[330265953,1719217786805,-250.0,0.00039999,30]
[330265954,1719217786834,-50000.0,0.0004,30]
[330265955,1719217786857,-487.14564259,0.0004,30]
[330265956,1719217786879,-152.90339963,0.0004,30]
[330265957,1719217786903,-477.12749073,0.0004,30]
[330265958,1719217786926,-443.06858192,0.0004,30]
[330265959,1719217786949,-162.49791812,0.0004,30]
[330265960,1719217786973,-1500.0,0.0004,30]
[330265961,1719217786996,-1046.69602231,0.0004,30]
[330265962,1719217787019,-192.37566791,0.0004,30]
[330265963,1719217787042,-171.6220713,0.0004,30]
[330265964,1719217787069,-200.35680216,0.0004,120]
[330265965,1719217787093,-700.0,0.0004,120]
[330265966,1719217787117,-876.1230748,0.0004,120]
[330265967,1719217787140,-389.94157743,0.0004,120]
[330265968,1719217787162,-655.27563664,0.0004,120]
[330265969,1719217787184,-2000.0,0.0004,80]
[330265970,1719217787208,-2000.0,0.0004,80]
[330265971,1719217787232,-2000.0,0.0004,80]
[330265972,1719217787256,-2000.0,0.0004,80]
[330265973,1719217787279,-2000.0,0.0004,80]
[330265974,1719217787303,-696.0,0.0004,60]
[330265975,1719217787327,-337.07233403,0.0004,30]
[330265976,1719217787351,-300.0,0.0004,30]
[330265977,1719217787375,-500.0,0.0004,30]
[330265978,1719217787398,-500.0,0.0004,30]
[330265979,1719217787423,-500.0,0.0004,30]
[330265980,1719217787445,-500.0,0.0004,30]
[330265981,1719217787469,-500.0,0.0004,30]
[330265982,1719217787492,-500.0,0.0004,30]
[330265983,1719217787515,-500.0,0.0004,30]
[330265984,1719217787538,-500.0,0.0004,30]
[330265985,1719217787561,-500.0,0.0004,30]
[330265986,1719217787584,-3881.17546415,0.0004,40]
[330265987,1719217787608,-7204.21503897,0.0004,60]
[330265988,1719217787631,-9000.0,0.0004,90]
[330265989,1719217787655,-2454.47691981,0.0004,30]
[330265990,1719217787678,-281.4421998,0.0004,120]
[330265991,1719217787702,-367.31217447,0.0004,120]
[330265992,1719217787726,-341.89382197,0.0004,30]
[330265993,1719217787749,-735.17463467,0.0004,120]
[330265994,1719217787772,-329.0,0.0004,60]
[330265995,1719217787794,-881.2085284,0.0004,120]
[330265996,1719217787816,-2011.46,0.0004,30]
[330265997,1719217787843,-196.0,0.0004,30]
[330265998,1719217787866,-413.0,0.0004,120]
[330265999,1719217787888,-2504.87076277,0.0004,120]
[330266000,1719217787914,-299.87383845,0.0004,60]
[330266001,1719217787936,-166.62775,0.00040088,30]
[330266002,1719217787960,-166.62775,0.00040288,30]
[330266003,1719217787985,-166.62775,0.00040488,30]
[330266004,1719217788012,-166.62775,0.00040688,30]
[330266005,1719217788036,-3036.0,0.000407,81]
[330266006,1719217788059,-1070.656206,0.000408,30]
[330266007,1719217788082,-264.689738,0.000408,30]
[330266008,1719217788107,-981.58349853,0.000409,120]
[330266009,1719217788132,-981.58349837,0.000409,120]
[330266010,1719217788157,-981.58349837,0.000409,120]
[330266011,1719217788184,-981.58349837,0.000409,120]
[330266012,1719217788214,-981.58349837,0.000409,120]
[330266013,1719217788237,-981.58349837,0.000409,120]
[330266014,1719217788262,-981.58349837,0.000409,120]
[330266015,1719217788286,-981.58349837,0.000409,120]
[330266016,1719217788310,-981.58349837,0.000409,120]
[330266017,1719217788334,-981.58349837,0.000409,120]
[330266018,1719217788360,-981.58349837,0.000409,120]
[330266019,1719217788577,-981.58349837,0.000409,120]
[330266020,1719217788602,-981.58349837,0.000409,120]
[330266021,1719217788626,-981.58349837,0.000409,120]
[330266022,1719217788649,-981.58349837,0.000409,120]
[330266023,1719217788674,-981.58349837,0.000409,120]
[330266024,1719217788698,-256.39177537,0.00040999,120]
[330266025,1719217788726,-50000.0,0.00041,31]
[330266026,1719217788749,-2528.54256864,0.00041,30]
[330266027,1719217788771,-4361.61473303,0.00041,30]
[330266028,1719217788795,-2500.0,0.00041,120]
[330266029,1719217788822,-2000.0,0.00041,30]
[330266030,1719217788846,-174.35003686,0.00041,60]
[330266031,1719217788872,-530.67,0.00041,120]
[330266032,1719217788898,-1016.11377748,0.00041,120]
[330266033,1719217788922,-235.84928753,0.00041,60]
[330266034,1719217788945,-368.43566097,0.00041019,120]
[330266035,1719217788969,-166.62775,0.00041088,30]
[330266036,1719217788993,-1000.0,0.00041095,120]
[330266037,1719217789019,-500.0,0.00041095,120]
[330266038,1719217789042,-500.0,0.00041095,120]
[330266039,1719217789066,-506.21312771,0.00041095,120]
[330266040,1719217789088,-510.0,0.00041095,120]
[330266041,1719217789111,-200.0,0.00041096,60]
[330266042,1719217789133,-1000.0,0.00041096,30]
[330266043,1719217789156,-611.11999404,0.00041096,40]
[330266044,1719217789178,-302.45873029,0.00041096,40]
[330266045,1719217789200,-355.72825129,0.00041096,40]
[330266046,1719217789227,-984.05154666,0.00041096,40]
[330266047,1719217789250,-2000.0,0.00041234,90]
[330266048,1719217789274,-166.62775,0.00041288,30]
[330266049,1719217789297,-510.0,0.00041369,120]
[330266050,1719217789319,-1000.0,0.0004137,30]
[330266051,1719217789342,-1002.15445788,0.000414,60]
[330266052,1719217789364,-300.0,0.00041465,120]
[330266053,1719217789387,-166.62775,0.00041488,30]
[330266054,1719217789409,-2578.98,0.0004158,48]
[330266055,1719217789431,-510.0,0.00041643,120]
[330266056,1719217789456,-1000.0,0.00041644,30]
[330266057,1719217789478,-166.62775,0.00041688,30]
[330266058,1719217789500,-142364.62867671,0.000418,60]
[330266059,1719217789522,-12122.5364371,0.000418,60]
[330266060,1719217789544,-392.30596212,0.000418,60]
[330266061,1719217789567,-68754.33366242,0.000419,30]
[330266062,1719217791374,-539.0233773,0.0002863,30]
[330266063,1719217791397,-1807.62997774,0.0002863,30]
[330266064,1719217791420,-1000.0,0.0002863,30]
[330266065,1719217791444,-1000.0,0.0002863,30]
[330266066,1719217791470,-190.0,0.0002863,30]
[330266067,1719217791495,-1000.0,0.0002863,60]
[330266068,1719217791519,-1000.0,0.0002863,30]
[330266069,1719217791542,-1000.0,0.0002863,30]
[330266070,1719217791565,-1000.0,0.0002863,60]
[330266071,1719217791588,-1000.0,0.0002863,30]
[330266072,1719217791611,-1005.21967825,0.0002863,30]
[330266073,1719217791634,-1000.0,0.0002863,60]
[330266074,1719217791657,-1000.0,0.0002863,30]
[330266075,1719217791679,-1000.0,0.0002863,30]
[330266076,1719217791702,-216.1702515,0.0002863,60]
[330266077,1719217791727,-1000.0,0.0002863,30]
[330266078,1719217791750,-1000.0,0.0002863,30]
[330266079,1719217791774,-1000.0,0.0002863,30]
[330266080,1719217791798,-452.1326941,0.0002863,30]
[330266081,1719217791822,-1000.0,0.0002863,30]
[330266082,1719217791847,-1000.0,0.0002863,30]
[330266083,1719217791870,-1000.0,0.0002863,30]
[330266084,1719217791893,-1000.0,0.0002863,30]
[330266085,1719217791917,-1000.0,0.0002863,30]
[330266086,1719217791941,-482.32768838,0.0002863,30]
[330266087,1719217791965,-360.47985883,0.0002863,30]
[330266088,1719217791989,-833.17775452,0.0002863,30]
[330266089,1719217792013,-1000.0,0.0002863,30]
[330266090,1719217792037,-697.69691251,0.0002863,30]
[330266091,1719217792061,-816.09856814,0.0002863,30]
[330266092,1719217792085,-823.90438863,0.0002863,30]
[330266093,1719217792108,-658.79802662,0.0002863,30]
[330266094,1719217792134,-197.13890104,0.0002863,30]
[330266095,1719217792158,-916.82721557,0.0002863,30]
[330266096,1719217792183,-195.61075283,0.0002863,30]
[330266097,1719217792206,-150.73839039,0.0002863,31]
[330266098,1719217792230,-332.57800784,0.0002863,30]
[330266099,1719217792253,-500.0,0.0002863,30]
[330266100,1719217792277,-257.91578636,0.0002863,30]
[330266101,1719217792301,-843.32656799,0.0002863,30]
[330266102,1719217792324,-192.76334878,0.0002863,30]
[330266103,1719217792347,-696.23724261,0.0002863,30]
[330266104,1719217792370,-252.48164809,0.0002863,30]
[330266105,1719217792392,-153.51825833,0.0002863,30]
[330266106,1719217792416,-2191.12527775,0.0002863,30]
[330266107,1719217792438,-1456.17850301,0.0002863,30]
[330266108,1719217792461,-1391.60449611,0.0002863,30]
[330266109,1719217792483,-1091.5409477,0.0002863,30]
[330266110,1719217792506,-285.79781781,0.0002863,30]
[330266111,1719217792528,-2073.92845123,0.0002863,30]
[330266112,1719217792552,-266.0,0.0002863,30]
[330266113,1719217792576,-50230.5432786,0.0002863,60]
[330266114,1719217792600,-8676.94565051,0.0002863,30]
[330266115,1719217792623,-699.37327415,0.0002863,60]
[330266116,1719217792647,-1780.31930758,0.0002863,32]
[330266117,1719217792671,-1597.04140382,0.0002863,30]
[330266118,1719217792694,-1001.2052844,0.0002863,120]
[330266119,1719217792718,-3652.2848052,0.0002863,120]
[330266120,1719217792741,-277.2764202,0.0002863,120]
[330266121,1719217792764,-1883.4,0.0002863,30]
[330266122,1719217792787,-2000.0,0.0002863,30]
[330266123,1719217792810,-2000.0,0.0002863,30]
[330266124,1719217792838,-2000.0,0.0002863,30]
[330266125,1719217792860,-1140.75016477,0.0002863,120]
[330266126,1719217792886,-689477.64683368,0.0002863,30]
[330266127,1719217792910,-1415.47959416,0.0002863,30]
[330266128,1719217792933,-3040.61922785,0.0002863,30]
[330266129,1719217792957,-152.59894837,0.0002863,30]
[330266130,1719217792981,-239.66333012,0.0002863,30]
[330266131,1719217793003,-354.58078286,0.0002863,120]
[330266132,1719217793027,-2000.0,0.0002863,30]
[330266133,1719217793051,-500.0,0.0002863,30]
[330266134,1719217793075,-1262.92462591,0.0002863,120]
[330266135,1719217793098,-970.70552683,0.0002863,120]
[330266136,1719217793122,-536.17373142,0.0002863,120]
[330266137,1719217793146,-840.01588114,0.0002863,120]
[330266138,1719217793169,-584.02682096,0.0002863,120]
[330266139,1719217793192,-810.36508406,0.0002863,120]
[330266140,1719217793218,-5843.10876364,0.0002863,30]
[330266141,1719217793243,-3870.7693997,0.0002863,30]
[330266142,1719217793267,-8731.67091948,0.0002863,30]
[330266143,1719217793292,-161102.54015063,0.0002863,30]
[330266144,1719217797934,-1000000.0,0.0002863,30]
[330266145,1719217803612,-490763.04238442,0.0002863,30]
[330266146,1719217803637,-5152.93260648,0.0002863,30]
[330266147,1719217803661,-7300.0,0.0002863,30]
[330266148,1719217803685,-1376.491,0.0002863,60]
[330266149,1719217803711,-2683.81688897,0.0002863,30]
[330266150,1719217803736,-3491.8848502,0.0002863,120]
[330266151,1719217803761,-3178.59395755,0.0002863,30]
[330266152,1719217803785,-2649.7630475,0.0002863,60]
[330266153,1719217803809,-1000.0,0.0002863,60]
[330266154,1719217803839,-1000.0,0.0002863,60]
[330266155,1719217803865,-1000.0,0.0002863,60]
[330266156,1719217803890,-1000.0,0.0002863,60]
[330266157,1719217803918,-1000.0,0.0002863,30]
[330266158,1719217803944,-1000.0,0.0002863,30]
[330266159,1719217803968,-1047.51546938,0.0002863,120]
[330266160,1719217803992,-1000.0,0.0002863,30]
[330266161,1719217804017,-1000.0,0.0002863,30]
[330266162,1719217804041,-1000.0,0.0002863,60]
[330266163,1719217804067,-1000.0,0.0002863,60]